bitfinex/quotes_ETHUSD_20240810
["timestamp","ask_amount","ask_price","bid_price","bid_amount"]
[1723254507679,6.19759,2609.4,2608.8,2.3516]
[1723254507680,3.83239,2609.4,2608.8,2.3516]
[1723254507883,3.83239,2609.4,2608.9,4.13916562]
[1723254508235,3.83205,2609.6,2608.9,4.13916562]
[1723254508236,7.66418,2609.6,2608.9,4.13916562]
[1723254508579,3.83205,2609.6,2609.0,3.83288]
[1723254508740,3.83205,2609.6,2609.1,0.41391056]
[1723254508935,7.66414,2609.6,2609.1,0.41391056]
[1723254509258,3.83205,2609.6,2609.1,2.76551056]
[1723254509632,7.66416,2609.6,2609.1,2.76551056]
[1723254509836,3.83205,2609.6,2609.1,2.76551056]
[1723254510166,3.83205,2609.6,2609.2,0.65983006]
[1723254510560,3.83223,2609.5,2609.2,0.65983006]
[1723254511376,2.2595,2609.8,2609.2,0.65983006]
[1723254511678,2.2595,2610.1,2609.6,3.83198]
[1723254511881,3.8312,2610.2,2609.6,3.83192]
[1723254512085,3.8312,2610.2,2609.7,0.618352]
[1723254512438,3.83102,2610.3,2609.8,2.3516]
[1723254512667,3.83091,2610.4,2609.9,3.9081701]
[1723254512864,3.83091,2610.4,2609.9,4.1285352]
[1723254513138,3.83091,2610.4,2609.9,4.20515861]
[1723254513338,9.9207,2610.6,2609.9,4.1285352]
[1723254513584,2.2595,2610.6,2610.1,3.83126]
[1723254513889,3.83059,2610.6,2610.0,4.86248252]
[1723254514176,3.83099,2610.3,2610.0,1.03117252]
[1723254514350,3.83099,2610.3,2609.8,2.3516]
[1723254514550,2.2595,2610.6,2609.6,11.322]
[1723254514757,3.8309,2610.4,2609.6,11.322]
[1723254514965,3.83122,2610.2,2609.7,1.1322]
[1723254515370,3.83136,2610.1,2609.7,1.1322]
[1723254515879,3.83145,2610.0,2609.7,1.1322]
[1723254516281,7.66246,2610.2,2609.7,1.1322]
[1723254516474,3.83128,2610.1,2609.8,0.86222]
[1723254516883,3.8309,2610.4,2609.8,0.86222]
[1723254517087,7.80692,2611.1,2609.9,3.83153]
[1723254517293,7.80692,2611.1,2610.0,3.83139]
[1723254517294,3.83051,2610.7,2610.0,3.83139]
[1723254517587,3.83054,2610.6,2610.0,4.828062]
[1723254517789,3.83096,2610.4,2610.0,0.996672]
[1723254517999,3.83101,2610.3,2609.8,6.13546]
[1723254519146,3.83062,2610.6,2609.8,2.3038]
[1723254519376,3.83162,2609.9,2609.5,2.3038]
[1723254519553,7.66328,2609.9,2609.5,2.3038]
[1723254519764,3.83162,2609.9,2609.5,2.3038]
[1723254519948,7.66272,2610.1,2609.6,0.23038]
[1723254520289,2.4713,2610.4,2609.6,0.23038]
[1723254520524,3.8318,2609.8,2609.2,9.7938]
[1723254520652,3.8318,2609.8,2609.2,2.3038]
[1723254520851,3.8318,2609.8,2609.2,6.13638]
[1723254521187,3.8318,2609.8,2609.2,9.96887]
[1723254521764,3.8318,2609.8,2609.3,3.83242]
[1723254521968,6.30279,2610.0,2609.4,4.829161]
[1723254522284,3.83093,2610.4,2609.8,3.83161]
[1723254522490,3.83093,2610.4,2609.9,2.4529]
[1723254522660,3.83093,2610.4,2609.9,6.28444]
[1723254522862,3.83061,2610.6,2610.0,4.842985]
[1723254523090,3.83061,2610.6,2610.0,4.842935]
[1723254523479,2.2634,2610.9,2610.0,4.842935]
[1723254523480,2.2634,2610.9,2610.0,1.011605]
[1723254523784,2.2634,2610.9,2609.9,2.4529]
[1723254523785,3.83003,2611.0,2610.4,3.83082]
[1723254523952,3.83003,2611.0,2610.4,3.83074]
[1723254524554,3.82989,2611.1,2610.4,3.83074]
[1723254524749,7.65916,2611.3,2610.7,2.4529]
[1723254525053,3.82966,2611.2,2610.7,2.4529]
[1723254525555,3.82986,2611.1,2610.7,2.4529]
[1723254525900,2.2634,2611.3,2610.4,2.4529]
[1723254526052,3.83018,2610.9,2610.3,3.83096]
[1723254526393,3.83018,2610.9,2610.4,3.83082]
[1723254526601,6.09299,2611.3,2610.5,2.4529]
[1723254526808,3.82959,2611.3,2610.6,3.83043]
[1723254527095,3.82981,2611.1,2610.6,3.83044]
[1723254527265,3.8302,2610.9,2610.4,2.4529]
[1723254527469,3.83033,2610.8,2610.4,2.4529]
[1723254527683,6.09306,2611.2,2610.4,2.4529]
[1723254527888,3.82952,2611.3,2610.6,2.4529]
[1723254528481,3.83008,2611.0,2610.5,2.69819]
[1723254528792,3.83008,2611.0,2610.5,2.4529]
[1723254529004,3.82992,2611.1,2610.5,2.4529]
[1723254530061,3.83003,2611.0,2610.5,2.4529]
[1723254530487,3.82992,2611.1,2610.5,6.28349]
[1723254530667,3.82958,2611.3,2610.7,3.83038]
[1723254530876,6.09264,2611.5,2610.9,3.82999]
[1723254530877,3.82924,2611.5,2610.9,3.82999]
[1723254531080,3.82924,2611.5,2611.0,2.4529]
[1723254531599,3.82908,2611.6,2611.0,6.28276]
[1723254531898,0.1245081,2611.7,2611.2,3.82957]
[1723254532095,0.1245081,2611.7,2611.5,3.82921]
[1723254532602,0.1245081,2611.7,2611.2,2.4529]
[1723254532793,7.7825281,2611.7,2611.2,2.4529]
[1723254532994,3.9534681,2611.7,2611.2,2.4529]
[1723254533161,3.9534681,2611.7,2611.3,0.628257]
[1723254533362,0.1245081,2611.7,2611.3,0.628257]
[1723254534105,3.82932,2611.5,2611.3,0.628257]
[1723254534397,6.2168581,2611.7,2611.0,3.82986]
[1723254534561,3.82938,2611.4,2610.9,6.28292]
[1723254535397,2.3879081,2611.7,2610.7,2.4529]
[1723254535628,3.82984,2611.1,2610.7,2.4529]
[1723254535898,3.82984,2611.1,2610.6,11.32048]
[1723254536102,6.09292,2611.3,2610.6,11.32044]
[1723254536304,3.82952,2611.3,2610.6,11.32044]
[1723254536603,3.8298,2611.1,2610.6,7.49]
[1723254537097,7.65972,2611.1,2610.6,7.49]
[1723254537283,3.82957,2611.3,2610.6,11.32042]
[1723254537460,3.82957,2611.3,2610.7,3.83038]
[1723254537661,3.82957,2611.3,2610.7,5.59075]
[1723254537860,3.82957,2611.3,2610.8,3.83021]
[1723254538114,3.82957,2611.3,2610.8,3.83016]
[1723254538313,3.82992,2611.1,2610.6,11.32039]
[1723254538493,3.82996,2611.0,2610.6,7.49]
[1723254539064,7.66,2611.0,2610.6,7.49]
[1723254539263,3.83055,2610.6,2610.2,2.2822]
[1723254539478,3.83055,2610.6,2610.0,23.39132]
[1723254539819,3.83055,2610.6,2610.1,3.83123]
[1723254540024,7.6612,2610.6,2610.2,2.722255]
[1723254540177,7.6612,2610.6,2609.8,3.83158]
[1723254540178,3.83075,2610.5,2609.8,3.83158]
[1723254540373,2.31,2610.6,2609.8,3.8317]
[1723254540374,3.83091,2610.4,2609.8,3.8317]
[1723254540577,0.997,2611.0,2610.1,6.11333]
[1723254540578,11.63764,2610.8,2610.1,6.11333]
[1723254540797,7.80727,2610.8,2610.1,6.11333]
[1723254540990,7.66065,2610.8,2610.2,3.83111]
[1723254541204,6.14022,2610.9,2610.2,3.83111]
[1723254541406,3.83024,2610.8,2610.3,3.83089]
[1723254541602,3.83003,2611.0,2610.4,3.83081]
[1723254541810,3.83026,2610.8,2610.3,0.611309]
[1723254542205,3.83026,2610.8,2610.2,3.83103]
[1723254542408,3.83016,2610.9,2610.2,3.831]
[1723254542603,3.82995,2611.0,2610.4,3.83073]
[1723254542886,3.82995,2611.0,2610.4,4.213803]
[1723254543085,3.82995,2611.0,2610.4,8.044543]
[1723254543281,3.82995,2611.0,2610.4,4.213803]
[1723254543506,3.82995,2611.0,2610.4,8.044543]
[1723254544214,3.82995,2611.0,2610.5,3.83066]
[1723254544592,3.82995,2611.0,2610.4,4.213803]
[1723254545092,7.65999,2611.0,2610.4,4.213803]
[1723254545286,3.82995,2611.0,2610.4,4.213803]
[1723254545711,3.83018,2610.9,2610.4,4.213803]
[1723254545914,3.83018,2610.9,2610.4,0.383073]
[1723254546114,2.31,2611.1,2610.1,2.2822]
[1723254546321,6.28402,2610.6,2610.0,7.49]
[1723254546839,3.83071,2610.5,2610.0,7.49]
[1723254546997,2.4534,2610.6,2610.0,7.49]
[1723254547205,3.83077,2610.5,2610.0,7.49]
[1723254547402,3.83084,2610.4,2610.0,7.49]
[1723254547726,3.83077,2610.5,2610.0,7.49]
[1723254547727,7.66154,2610.5,2610.0,7.49]
[1723254548093,2.4534,2610.9,2610.0,7.49]
[1723254548291,2.4534,2610.9,2610.2,6.31191]
[1723254548292,3.83028,2610.8,2610.2,6.31191]
[1723254548828,3.83045,2610.7,2610.2,6.31191]
[1723254549028,3.83102,2610.3,2610.0,7.49]
[1723254549597,3.83102,2610.3,2609.8,3.83164]
[1723254549819,3.83102,2610.3,2609.9,0.631254]
[1723254550342,3.83116,2610.2,2609.7,2.4809]
[1723254550537,3.83116,2610.2,2609.6,3.83191]
[1723254550738,3.83116,2610.2,2609.6,7.66383]
[1723254550893,6.28414,2610.5,2609.8,3.83161]
[1723254551093,3.83074,2610.5,2609.9,2.864061]
[1723254551318,3.83074,2610.5,2610.0,3.83141]
[1723254551520,3.83085,2610.4,2609.9,2.864061]
[1723254551835,3.83055,2610.6,2610.1,3.83121]
[1723254552220,3.83076,2610.5,2609.9,6.695511]
[1723254552422,6.28373,2610.8,2610.0,0.6695511]
[1723254552738,6.28373,2610.8,2610.2,3.83102]
[1723254552931,10.11408,2610.8,2610.2,3.83102]
[1723254553291,6.28373,2610.8,2610.3,3.83092]
[1723254553639,6.28373,2610.8,2610.3,4.597114]
[1723254553813,3.83043,2610.7,2610.3,0.766194]
[1723254555024,10.11406,2610.8,2610.3,0.766194]
[1723254555564,10.11407,2610.8,2610.3,0.766194]
[1723254555922,6.28373,2610.8,2610.3,0.766194]
[1723254556123,3.83004,2611.0,2610.4,2.9406214]
[1723254556360,3.83004,2611.0,2610.5,3.83059]
[1723254556559,3.82982,2611.1,2610.6,3.83045]
[1723254557763,3.82965,2611.3,2610.7,3.83035]
[1723254557964,3.82945,2611.4,2610.7,3.83035]
[1723254558189,3.82945,2611.4,2610.8,2.3172]
[1723254558356,10.05447,2611.6,2610.9,7.66009]
[1723254558540,3.82928,2611.5,2610.9,3.82999]
[1723254559128,3.82928,2611.5,2610.8,2.3172]
[1723254559330,3.82952,2611.3,2610.8,6.8028834]
[1723254559525,3.82952,2611.3,2610.8,2.9727334]
[1723254559727,3.82952,2611.3,2610.7,8.068384]
[1723254559933,3.82999,2611.0,2610.7,0.407844]
[1723254560160,3.82999,2611.0,2610.5,11.32059]
[1723254560538,3.82999,2611.0,2610.5,7.49]
[1723254560741,3.8301,2610.9,2610.5,7.49]
[1723254562673,2.3961,2611.1,2610.0,7.49]
[1723254562674,3.83085,2610.4,2610.0,7.49]
[1723254562869,3.83085,2610.4,2609.9,0.383161]
[1723254563254,3.83106,2610.3,2609.9,0.383161]
[1723254564673,3.83106,2610.3,2609.5,7.49]
[1723254564674,3.83139,2610.1,2609.5,13.69569]
[1723254564857,3.83142,2610.0,2609.5,7.49]
[1723254565061,3.83164,2609.9,2609.3,3.83236]
[1723254565376,3.83164,2609.9,2609.4,0.620596]
[1723254565566,3.83142,2610.0,2609.4,0.620596]
[1723254565951,3.83142,2610.0,2609.4,4.452846]
[1723254566146,2.4942,2610.1,2609.5,3.83214]
[1723254566352,7.66243,2610.2,2609.6,4.2772736]
[1723254568276,3.83121,2610.2,2609.6,4.2772736]
[1723254568475,7.66243,2610.2,2609.6,3.832]
[1723254568670,2.4942,2610.3,2609.6,2.3736]
[1723254568860,3.8309,2610.4,2609.8,3.83162]
[1723254569185,6.32481,2610.6,2610.1,3.83124]
[1723254569477,3.83055,2610.6,2610.2,0.383124]
[1723254569684,3.83077,2610.5,2609.9,3.83154]
[1723254569843,3.83055,2610.6,2610.0,3.83139]
[1723254570043,3.83055,2610.6,2610.0,7.66272]
[1723254570549,3.83055,2610.6,2610.0,3.83133]
[1723254570744,3.83055,2610.6,2610.0,3.83132]
[1723254570943,3.83086,2610.4,2609.9,1.003678]
[1723254571143,3.83086,2610.4,2609.8,3.8316]
[1723254571144,3.83086,2610.4,2610.0,0.4835278]
[1723254572073,2.4942,2610.3,2609.7,2.3736]
[1723254572281,2.4942,2610.3,2609.8,3.8317]
[1723254572579,3.83127,2610.1,2609.6,3.83189]
[1723254572783,3.83127,2610.1,2609.6,4.83566]
[1723254575188,6.32524,2610.3,2609.7,3.83184]
[1723254575387,10.15631,2610.3,2609.7,3.83184]
[1723254575547,3.83114,2610.2,2609.6,4.83566]
[1723254576678,3.83129,2610.1,2609.6,4.83566]
[1723254577067,6.32524,2610.3,2609.6,4.83566]
[1723254577068,10.15636,2610.3,2609.7,3.83185]
[1723254577661,3.83113,2610.2,2609.6,4.83566]
[1723254577888,3.83113,2610.2,2609.6,8.66758]
[1723254578053,3.83113,2610.2,2609.7,1.104118]
[1723254578951,6.32524,2610.3,2609.7,4.935968]
[1723254579360,3.83112,2610.2,2609.7,4.935968]
[1723254584678,2.3524,2610.6,2609.8,2.3199]
[1723254584879,2.3524,2610.7,2609.9,0.3424018]
[1723254585191,2.3524,2610.7,2609.8,2.3199]
[1723254585192,3.83087,2610.4,2609.8,2.3199]
[1723254585392,3.83121,2610.2,2609.8,2.3199]
[1723254585561,3.83121,2610.2,2609.6,11.32199]
[1723254585562,3.83127,2610.1,2609.6,11.32199]
[1723254585900,3.83121,2610.2,2609.6,13.069402]
[1723254586098,3.83121,2610.2,2609.6,9.237402]
[1723254586303,3.83138,2610.1,2609.6,9.237402]
[1723254587259,3.83138,2610.1,2609.6,7.49]
[1723254587799,3.83185,2609.7,2609.2,2.3199]
[1723254588007,3.83219,2609.5,2609.0,2.3199]
[1723254588310,3.83219,2609.5,2609.1,0.615282]
[1723254588867,3.83185,2609.7,2609.1,4.447922]
[1723254589097,3.83185,2609.7,2609.1,3.83264]
[1723254589305,3.83185,2609.7,2609.2,3.83258]
[1723254589507,2.3524,2610.1,2609.4,2.3199]
[1723254589800,2.3524,2610.1,2609.5,0.615229]
[1723254590009,2.3524,2610.1,2609.4,2.3199]
[1723254590379,3.83152,2610.0,2609.5,3.83214]
[1723254590702,3.83161,2609.9,2609.4,2.3199]
[1723254591267,3.83172,2609.8,2609.4,2.3199]
[1723254592536,2.3524,2609.7,2609.1,3.83265]
[1723254592860,2.3524,2609.7,2608.7,6.15312]
[1723254592861,3.83246,2609.3,2608.7,6.15312]
[1723254593152,3.83246,2609.3,2608.5,6.15344]
[1723254593153,3.83275,2609.1,2608.5,6.15344]
[1723254593309,3.83289,2609.0,2608.5,6.15344]
[1723254593490,3.83289,2609.0,2608.5,2.3199]
[1723254593690,3.83275,2609.1,2608.5,2.3199]
[1723254593691,3.83305,2608.9,2608.5,2.3199]
[1723254594324,6.18493,2609.3,2608.5,6.15343]
[1723254594493,6.18493,2609.3,2608.5,2.935243]
[1723254594693,10.0175,2609.3,2608.7,3.83324]
[1723254595490,3.83259,2609.2,2608.7,3.83324]
[1723254597736,3.83288,2609.1,2608.5,6.15338]
[1723254598041,4.216178,2609.0,2608.5,6.15338]
[1723254598196,3.83288,2609.1,2608.5,6.15338]
[1723254598392,3.83286,2609.1,2608.5,6.15338]
[1723254598635,7.66572,2609.1,2608.5,6.15338]
[1723254598801,7.66573,2609.1,2608.5,6.15338]
[1723254598996,3.83291,2609.0,2608.5,3.83348]
[1723254599217,3.83304,2608.9,2608.3,10.018]
[1723254599423,3.83304,2608.9,2608.4,1.0018]
[1723254599622,3.83304,2608.9,2608.4,4.83552]
[1723254599821,3.83304,2608.9,2608.4,1.0018]
[1723254600135,3.83333,2608.7,2608.3,2.3504]
[1723254600344,2.281,2609.2,2608.6,3.83346]
[1723254600494,0.2281,2609.1,2608.7,3.83332]
[1723254600695,6.11359,2609.2,2608.7,3.83332]
[1723254601125,6.11359,2609.2,2608.4,3.83368]
[1723254601314,3.83298,2609.0,2608.4,3.83368]
[1723254601521,3.83305,2608.9,2608.4,3.83368]
[1723254601944,3.83338,2608.7,2608.1,2.2655]
[1723254602240,3.83338,2608.7,2607.9,6.09992]
[1723254602241,3.8337,2608.5,2607.9,6.09992]
[1723254602396,3.83341,2608.7,2608.1,3.83419]
[1723254602397,3.8334,2608.7,2608.1,3.83419]
[1723254602599,3.83351,2608.6,2608.0,7.66858]
[1723254602802,6.26168,2609.1,2608.3,2.2655]
[1723254603116,6.26164,2609.1,2608.5,7.66704]
[1723254603310,6.26164,2609.1,2608.5,3.83351]
[1723254603546,6.26164,2609.1,2608.3,6.09932]
[1723254603547,3.83303,2608.9,2608.3,6.09932]
[1723254603839,3.83303,2608.9,2608.3,3.83382]
[1723254604035,3.83303,2608.9,2608.3,7.66765]
[1723254604196,3.83333,2608.7,2608.2,2.2655]
[1723254604848,3.83333,2608.7,2608.2,6.09955]
[1723254605005,3.83303,2608.9,2608.2,6.09955]
[1723254605006,3.83303,2608.9,2608.3,3.83387]
[1723254605211,7.66616,2608.9,2608.3,3.83387]
[1723254605396,3.83303,2608.9,2608.3,4.827219]
[1723254605601,3.83327,2608.8,2608.3,4.827219]
[1723254605798,3.83371,2608.5,2607.9,6.09992]
[1723254605998,6.26241,2608.6,2608.0,3.83429]
[1723254606236,3.83351,2608.6,2608.1,4.827611]
[1723254606447,3.83339,2608.7,2608.1,4.827611]
[1723254606448,7.66684,2608.7,2608.1,4.827611]
[1723254606608,3.83339,2608.7,2608.1,4.827611]
[1723254606797,2.4289,2608.8,2608.1,0.993421]
[1723254607020,6.90274,2608.8,2608.1,0.993421]
[1723254607538,3.83356,2608.6,2608.1,0.993421]
[1723254608134,3.83362,2608.5,2608.1,0.993421]
[1723254608432,3.83362,2608.5,2607.9,6.0999]
[1723254608821,3.83362,2608.5,2607.9,9.93431]
[1723254609458,3.83362,2608.5,2607.9,6.0999]
[1723254610040,3.06949,2608.8,2607.7,6.8347]
[1723254610041,3.83379,2608.4,2607.7,6.8347]
[1723254610226,3.83406,2608.2,2607.7,10.66941]
[1723254610440,3.83406,2608.2,2607.8,1.293491]
[1723254610640,6.26269,2608.4,2607.8,1.293491]
[1723254610841,3.83393,2608.3,2607.8,1.293491]
[1723254611251,3.83429,2608.1,2607.6,2.2655]
[1723254611420,3.83458,2607.9,2607.5,7.49]
[1723254611621,3.83458,2607.9,2607.0,11.73495064]
[1723254611622,0.766898,2607.9,2607.0,11.73495064]
[1723254611823,0.766898,2607.9,2607.0,3.64466315]
[1723254611824,3.83524,2607.4,2607.0,3.64466315]
[1723254612061,11.50701,2607.1,2607.0,3.64466315]
[1723254612229,3.83636,2606.7,2606.0,3.83729]
[1723254612429,3.83636,2606.7,2605.9,3.83732]
[1723254612645,3.83667,2606.5,2606.0,0.67036941]
[1723254612848,3.83655,2606.6,2605.9,3.83734]
[1723254613046,3.83655,2606.6,2605.9,4.831404]
[1723254613263,3.83655,2606.6,2605.9,8.668724]
[1723254613441,3.83655,2606.6,2605.9,4.831394]
[1723254614635,3.83617,2606.8,2605.9,0.994074]
[1723254614838,3.83617,2606.8,2606.1,7.67405]
[1723254615035,3.83617,2606.8,2606.2,3.83698]
[1723254615243,3.83585,2607.0,2606.3,6.10226]
[1723254615450,3.83585,2607.0,2606.4,0.610226]
[1723254615643,3.83585,2607.0,2606.3,6.10226]
[1723254615844,7.67179,2607.0,2606.3,6.10226]
[1723254616371,6.26449,2607.2,2606.5,3.83654]
[1723254616536,3.83583,2607.0,2606.3,9.939]
[1723254616737,3.83583,2607.0,2606.3,6.10224]
[1723254616937,3.83583,2607.0,2606.3,9.93898]
[1723254617133,3.83583,2607.0,2606.3,6.10224]
[1723254617335,3.83583,2607.0,2606.4,0.610224]
[1723254618344,3.83583,2607.0,2606.4,4.446834]
[1723254618672,7.588639,2607.2,2606.6,3.8364]
[1723254618673,6.26449,2607.2,2606.6,3.8364]
[1723254620070,6.26449,2607.2,2606.7,3.83625]
[1723254620236,2.4289,2607.2,2606.7,3.83618]
[1723254620432,2.4289,2607.2,2606.5,3.83648]
[1723254620637,6.26452,2607.2,2606.6,3.83639]
[1723254620857,2.4185,2607.5,2606.5,0.6712204]
[1723254621055,3.83475,2607.8,2607.1,3.83554]
[1723254621436,7.81142,2608.0,2607.3,3.83526]
[1723254621869,3.83465,2607.8,2607.1,7.67117]
[1723254622081,2.4693,2607.8,2606.6,10.49]
[1723254622238,3.83532,2607.4,2606.7,3.83615]
[1723254622677,3.83532,2607.4,2606.8,3.83608]
[1723254622884,3.83501,2607.6,2606.9,4.603073]
[1723254623068,3.83501,2607.6,2606.9,3.83585]
[1723254623069,3.8351,2607.5,2606.9,3.83585]
[1723254623237,3.83525,2607.4,2606.7,3.83615]
[1723254623438,3.83548,2607.3,2606.8,1.670625]
[1723254623665,3.83525,2607.4,2606.8,1.670625]
[1723254623986,3.83525,2607.4,2606.8,5.506645]
[1723254624167,3.83525,2607.4,2606.9,0.9342795]
[1723254624368,7.67059,2607.4,2606.9,0.9342795]
[1723254624955,3.83538,2607.3,2606.9,0.9342795]
[1723254625281,3.83554,2607.2,2606.8,1.670625]
[1723254626283,3.83525,2607.4,2606.8,1.670625]
[1723254626451,3.83525,2607.4,2606.9,3.83596]
[1723254627003,3.83525,2607.4,2606.8,1.670625]
[1723254627143,7.67062,2607.4,2606.9,0.5506775]
[1723254627339,3.83592,2607.0,2606.6,7.49]
[1723254627886,2.4693,2607.6,2606.2,3.83692]
[1723254627887,3.83614,2606.8,2606.2,7.49]
[1723254628036,3.977,2607.4,2606.6,3.8364]
[1723254628037,3.8356,2607.2,2606.6,3.8364]
[1723254628239,3.8356,2607.2,2606.6,7.67271]
[1723254628433,3.8356,2607.2,2606.6,3.8363]
[1723254628890,10.2816,2607.4,2606.4,3.83662]
[1723254628891,6.4463,2607.4,2606.4,3.83662]
[1723254629195,3.83626,2606.7,2606.3,9.8701]
[1723254629492,10.14147,2606.9,2606.3,3.83673]
[1723254629701,6.30538,2606.9,2606.3,3.83673]
[1723254629906,3.83631,2606.7,2606.2,3.83687]
[1723254630116,3.83631,2606.7,2606.2,4.842289]
[1723254630410,3.83631,2606.7,2606.2,1.005419]
[1723254630761,3.83631,2606.7,2606.2,4.842379]
[1723254631404,6.30534,2606.9,2606.2,8.679279]
[1723254631703,3.83575,2607.1,2606.5,3.83655]
[1723254631868,4.530718,2607.1,2606.5,3.83655]
[1723254632205,8.366488,2607.1,2606.6,0.07494305]
[1723254632509,4.530718,2607.1,2606.6,0.07494305]
[1723254632687,8.366488,2607.1,2606.6,0.07494305]
[1723254632895,4.530718,2607.1,2606.6,0.07494305]
[1723254633068,7.67153,2607.1,2606.6,0.07494305]
[1723254633274,3.83575,2607.1,2606.6,0.07494305]
[1723254634477,3.83606,2606.9,2606.6,0.07494305]
[1723254634670,7.67214,2606.9,2606.3,3.83672]
[1723254634864,3.83606,2606.9,2606.7,0.06804961]
[1723254635085,3.83606,2606.9,2606.4,3.83668]
[1723254635265,3.83606,2606.9,2606.8,0.06804961]
[1723254635497,3.83606,2606.9,2606.4,3.83668]
[1723254635680,3.83606,2606.9,2606.8,0.06806785]
[1723254635881,3.83606,2606.9,2606.4,3.83668]
[1723254636074,3.83606,2606.9,2606.4,4.60402]
[1723254636587,3.83606,2606.9,2606.5,0.0681317]
[1723254637089,3.83616,2606.8,2606.5,0.0681317]
[1723254637296,3.83616,2606.8,2605.2,0.19460236]
[1723254637297,3.83641,2606.6,2605.9,3.83741]
[1723254637479,3.83667,2606.5,2605.9,3.83741]
[1723254638602,3.83667,2606.5,2606.0,3.83729]
[1723254641289,3.83621,2606.8,2606.2,3.83699]
[1723254641783,3.83621,2606.8,2606.3,3.83675]
[1723254642110,3.83621,2606.8,2606.2,6.14009]
[1723254642271,7.67243,2606.8,2606.2,6.14009]
[1723254642478,3.83627,2606.7,2606.2,6.14009]
[1723254642680,3.83621,2606.8,2606.2,10.97474]
[1723254643376,7.67242,2606.8,2606.2,7.13775]
[1723254643600,7.67242,2606.8,2606.2,6.14002]
[1723254644502,2.3126,2606.9,2606.2,2.3031]
[1723254644712,2.3126,2606.9,2606.4,3.83661]
[1723254645018,3.83588,2607.0,2606.4,3.83661]
[1723254645530,7.6718,2607.0,2606.4,3.83661]
[1723254646212,3.83588,2607.0,2606.4,3.83661]
[1723254646388,3.83588,2607.0,2606.3,3.83671]
[1723254646583,3.83599,2606.9,2606.3,4.450712]
[1723254646984,3.83599,2606.9,2606.4,0.0652329]
[1723254647519,2.902963,2607.2,2606.4,7.7385429]
[1723254647520,3.83581,2607.1,2606.4,7.7385429]
[1723254647723,6.738583,2607.2,2606.4,7.7385429]
[1723254647724,6.738583,2607.2,2606.4,3.9018529]
[1723254648024,3.83587,2607.0,2606.4,3.9018529]
[1723254648388,3.8362,2606.8,2606.4,0.0652329]
[1723254648689,3.8362,2606.8,2606.2,9.97693]
[1723254648895,3.8362,2606.8,2606.5,0.06531485]
[1723254649107,3.8362,2606.8,2606.2,10.974623]
[1723254649307,7.6724,2606.8,2606.6,0.06531485]
[1723254649490,7.6724,2606.8,2606.2,6.14001]
[1723254649694,7.6724,2606.8,2606.7,0.06531485]
[1723254649909,3.8362,2606.8,2606.2,9.97693]
[1723254650237,3.8362,2606.8,2606.3,3.90212485]
[1723254650696,7.67242,2606.8,2606.3,3.90212485]
[1723254650898,3.8362,2606.8,2606.3,3.90212485]
[1723254651096,7.67239,2606.8,2606.3,3.90212485]
[1723254651544,3.83619,2606.8,2606.3,3.90212485]
[1723254651829,7.67239,2606.8,2606.3,3.90212485]
[1723254652559,3.83629,2606.7,2606.3,0.06531485]
[1723254652720,7.6734,2606.4,2606.3,0.06531485]
[1723254652922,3.83696,2606.3,2605.8,2.3031]
[1723254653126,3.83725,2606.1,2605.5,6.14105]
[1723254653609,3.83725,2606.1,2605.4,3.83813]
[1723254653610,3.83747,2605.9,2605.4,3.83813]
[1723254653810,3.83747,2605.9,2605.4,5.585092]
[1723254654217,7.67502,2605.9,2605.4,5.585092]
[1723254654426,3.83747,2605.9,2605.4,5.585092]
[1723254655248,3.83747,2605.9,2605.2,3.83839]
[1723254655544,10.1164,2605.7,2605.1,6.14158]
[1723254655771,6.27855,2605.7,2605.1,2.3031]
[1723254655914,6.27855,2605.7,2605.1,2.917277]
[1723254656451,3.83796,2605.6,2605.1,2.917277]
[1723254657961,2.2676,2606.0,2605.1,2.917277]
[1723254658129,9.94147,2606.3,2605.6,2.2763]
[1723254658328,2.2676,2606.3,2605.7,3.8377]
[1723254658543,3.83679,2606.4,2605.9,3.83743]
[1723254658740,3.83679,2606.4,2605.7,3.8376]
[1723254659037,2.2676,2606.2,2605.6,2.2763]
[1723254659251,2.2676,2606.2,2605.5,3.83792]
[1723254659420,2.2676,2606.2,2605.6,3.83788]
[1723254659614,2.2676,2606.2,2605.6,4.83309]
[1723254660320,3.83715,2606.1,2605.6,0.99521]
[1723254660522,6.10462,2606.2,2605.7,3.83773]
[1723254660731,3.83715,2606.1,2605.7,0.867086]
[1723254660948,3.83715,2606.1,2605.5,3.83792]
[1723254661457,3.83784,2605.7,2605.1,4.23802272]
[1723254661621,3.83794,2605.6,2605.1,3.83855]
[1723254661819,6.1053,2605.8,2605.2,3.83845]
[1723254662116,6.1053,2605.8,2605.3,4.60599]
[1723254662321,2.3758,2606.1,2605.5,6.29153]
[1723254662663,3.83695,2606.3,2605.8,3.83749]
[1723254663130,3.83695,2606.3,2605.9,0.06129503]
[1723254663956,2.3758,2606.4,2605.9,3.89859503]
[1723254664130,2.3758,2606.6,2605.9,2.90475453]
[1723254664334,3.8363,2606.7,2606.1,3.83703]
[1723254664540,3.8363,2606.7,2606.2,4.220663]
[1723254664732,2.3758,2606.9,2606.2,0.05718405]
[1723254664942,3.83641,2606.6,2605.9,6.6808095]
[1723254665167,3.83641,2606.6,2606.3,0.05516077]
[1723254665322,3.83723,2606.1,2605.5,6.29154]
[1723254665536,3.83711,2606.2,2605.6,3.83786]
[1723254665738,6.21258,2606.4,2605.8,6.29117]
[1723254666031,6.21209,2606.7,2606.1,3.837]